lending/lending_fUSD_20240411
["ID","MTS","AMOUNT","RATE_DAILY","PERIOD"]
[322149191,1712851842452,-597.19080736,0.00032876,2]
[322149192,1712851842463,-500.0,0.00032876,2]
[322149193,1712851842473,-634.61,0.00032876,2]
[322149194,1712851842482,-500.0,0.00032876,2]
[322149195,1712851842492,-500.0,0.00032876,2]
[322149196,1712851842502,-500.0,0.00032876,2]
[322149197,1712851842512,-500.0,0.00032876,2]
[322149198,1712851842522,-500.0,0.00032876,2]
[322149199,1712851842532,-500.0,0.00032876,2]
[322149200,1712851842541,-500.0,0.00032876,2]
[322149201,1712851842551,-614.53,0.00032876,2]
[322149202,1712851842561,-500.0,0.00032876,2]
[322149203,1712851842573,-639.23859704,0.00032876,2]
[322149204,1712851842584,-500.0,0.00032876,2]
[322149205,1712851842594,-500.0,0.00032876,2]
[322149206,1712851842603,-572.92838807,0.00032876,2]
[322149207,1712851842614,-698.83,0.00032876,2]
[322149208,1712851842624,-500.0,0.00032876,2]
[322149209,1712851842635,-689.08,0.00032876,2]
[322149210,1712851842644,-500.0,0.00032876,2]
[322149211,1712851842654,-500.0,0.00032876,2]
[322149212,1712851842667,-500.0,0.00032876,2]
[322149213,1712851842677,-771.01,0.00032876,2]
[322149214,1712851842688,-876.39,0.00032876,2]
[322149215,1712851842698,-586.31,0.00032876,2]
[322149216,1712851842708,-1923.25,0.00032876,2]
[322149217,1712851842718,-500.0,0.00032876,2]
[322149218,1712851842728,-605.24,0.00032876,2]
[322149219,1712851842738,-500.0,0.00032876,2]
[322149220,1712851842748,-500.0,0.00032876,2]
[322149221,1712851842758,-500.0,0.00032876,2]
[322149222,1712851842767,-500.0,0.00032876,2]
[322149223,1712851842777,-500.0,0.00032876,2]
[322149224,1712851842787,-500.0,0.00032876,2]
[322149225,1712851842797,-500.0,0.00032876,2]
[322149226,1712851842806,-500.0,0.00032876,2]
[322149227,1712851842817,-500.0,0.00032876,2]
[322149229,1712851842828,-563.33275822,0.00032876,2]
[322149231,1712851842838,-500.0,0.00032876,2]
[322149233,1712851842848,-596.68,0.00032876,2]
[322149235,1712851842858,-500.0,0.00032876,2]
[322149237,1712851842871,-500.0,0.00032876,2]
[322149239,1712851842882,-500.0,0.00032876,2]
[322149241,1712851842895,-500.0,0.00032876,2]
[322149243,1712851842905,-500.0,0.00032876,2]
[322149245,1712851842916,-1358.89,0.00032876,2]
[322149247,1712851842927,-500.0,0.00032876,2]
[322149250,1712851842938,-500.0,0.00032876,2]
[322149252,1712851842951,-1260.69,0.00032876,2]
[322149254,1712851842961,-500.0,0.00032876,2]
[322149256,1712851842972,-571.75,0.00032876,2]
[322149258,1712851842982,-500.0,0.00032876,2]
[322149260,1712851842992,-500.0,0.00032876,2]
[322149265,1712851843003,-500.0,0.00032876,2]
[322149268,1712851843013,-500.0,0.00032876,2]
[322149272,1712851843022,-827.99,0.00032876,2]
[322149276,1712851843032,-500.0,0.00032876,2]
[322149279,1712851843042,-500.0,0.00032876,2]
[322149282,1712851843051,-241.78824192,0.00032876,2]
[322149285,1712851843061,-687.16,0.00032876,2]
[322149289,1712851843071,-500.0,0.00032876,2]
[322149293,1712851843081,-1088.21,0.00032876,2]
[322149297,1712851843093,-1893.77,0.00032876,2]
[322149299,1712851843103,-500.0,0.00032876,2]
[322149301,1712851843112,-541.21,0.00032876,2]
[322149303,1712851843121,-1337.06,0.00032876,2]
[322149305,1712851843132,-657.71,0.00032876,2]
[322149307,1712851843142,-500.0,0.00032876,2]
[322149309,1712851843152,-990.66,0.00032876,2]
[322149311,1712851843161,-849.33,0.00032876,2]
[322149313,1712851843173,-456.66068442,0.00032876,2]
[322149315,1712851843185,-1045.52,0.00032876,2]
[322149317,1712851843194,-509.25,0.00032876,2]
[322149319,1712851843204,-500.0,0.00032876,2]
[322149320,1712851843215,-500.0,0.00032876,2]
[322149321,1712851843225,-500.0,0.00032876,2]
[322149322,1712851843235,-1428.54,0.00032876,2]
[322149323,1712851843246,-564.72,0.00032876,2]
[322149324,1712851843256,-816.01,0.00032876,2]
[322149325,1712851843265,-619.95,0.00032876,2]
[322149326,1712851843275,-500.0,0.00032876,2]
[322149327,1712851843287,-880.61,0.00032876,2]
[322149328,1712851843298,-700.04,0.00032876,2]
[322149329,1712851843309,-1442.35,0.00032876,2]
[322149330,1712851843319,-500.0,0.00032876,2]
[322149331,1712851843329,-530.74,0.00032876,2]
[322149332,1712851843341,-2238.81,0.00032876,2]
[322149333,1712851843351,-500.0,0.00032876,2]
[322149334,1712851843361,-500.0,0.00032876,2]
[322149335,1712851843371,-731.62,0.00032876,2]
[322149336,1712851843381,-259.02875357,0.00032876,2]
[322149337,1712851843390,-464.25824974,0.00032876,2]
[322149338,1712851843400,-500.0,0.00032876,2]
[322149339,1712851843409,-1140.62,0.00032876,2]
[322149340,1712851843418,-1334.41,0.00032876,2]
[322149341,1712851843429,-500.0,0.00032876,2]
[322149342,1712851843439,-500.0,0.00032876,2]
[322149343,1712851843450,-500.0,0.00032876,2]
[322149344,1712851843460,-1140.14,0.00032876,2]
[322149345,1712851843470,-1139.19,0.00032876,2]
[322149346,1712851843490,-2293.2,0.00032876,2]
[322149347,1712851843500,-685.6,0.00032876,2]
[322149348,1712851843509,-500.0,0.00032876,2]
[322149349,1712851843519,-500.0,0.00032876,2]
[322149350,1712851843529,-847.34,0.00032876,2]
[322149351,1712851843539,-1102.15,0.00032876,2]
[322149352,1712851843549,-500.0,0.00032876,2]
[322149353,1712851843559,-505.28416258,0.00032876,2]
[322149354,1712851843569,-825.78,0.00032876,2]
[322149355,1712851843579,-1014.1,0.00032876,2]
[322149356,1712851843588,-342.91548874,0.00032876,2]
[322149357,1712851843598,-516.03,0.00032876,2]
[322149358,1712851843607,-500.0,0.00032876,2]
[322149359,1712851843617,-500.0,0.00032876,2]
[322149360,1712851843627,-500.0,0.00032876,2]
[322149361,1712851843637,-1758.38,0.00032876,2]
[322149362,1712851843647,-500.0,0.00032876,2]
[322149363,1712851843656,-793.93,0.00032876,2]
[322149364,1712851843666,-500.0,0.00032876,2]
[322149365,1712851843676,-500.0,0.00032876,2]
[322149366,1712851843686,-1167.96,0.00032876,2]
[322149367,1712851843696,-278.10630877,0.00032876,2]
[322149368,1712851843706,-626.16,0.00032876,2]
[322149369,1712851843716,-500.0,0.00032876,2]
[322149370,1712851843726,-945.2,0.00032876,2]
[322149371,1712851843736,-2071.46,0.00032876,2]
[322149372,1712851843746,-703.14,0.00032876,2]
[322149373,1712851843756,-500.0,0.00032876,2]
[322149374,1712851843766,-846.95,0.00032876,2]
[322149375,1712851843777,-563.66,0.00032876,2]
[322149376,1712851843787,-1016.58,0.00032876,2]
[322149377,1712851843798,-500.0,0.00032876,2]
[322149378,1712851844143,-500.0,0.00032876,2]
[322149379,1712851844154,-3135.53,0.00032876,2]
[322149380,1712851844163,-500.0,0.00032876,2]
[322149381,1712851844175,-1715.83,0.00032876,2]
[322149382,1712851844186,-500.0,0.00032876,2]
[322149383,1712851844196,-500.0,0.00032876,2]
[322149384,1712851844205,-500.0,0.00032876,2]
[322149385,1712851844215,-500.0,0.00032876,2]
[322149386,1712851844225,-500.0,0.00032876,2]
[322149387,1712851844235,-500.0,0.00032876,2]
[322149388,1712851844246,-803.7,0.00032876,2]
[322149389,1712851844256,-500.0,0.00032876,2]
[322149390,1712851844266,-500.0,0.00032876,2]
[322149391,1712851844276,-936.04,0.00032876,2]
[322149392,1712851844286,-2006.4,0.00032876,2]
[322149393,1712851844295,-500.0,0.00032876,2]
[322149394,1712851844305,-500.0,0.00032876,2]
[322149395,1712851844316,-684.97,0.00032876,2]
[322149396,1712851844327,-1636.86,0.00032876,2]
[322149397,1712851844337,-1601.54,0.00032876,2]
[322149398,1712851844348,-756.16,0.00032876,2]
[322149399,1712851844360,-500.0,0.00032876,2]
[322149400,1712851844371,-500.0,0.00032876,2]
[322149401,1712851844381,-500.0,0.00032876,2]
[322149402,1712851844392,-500.0,0.00032876,2]
[322149403,1712851844403,-1972.18,0.00032876,2]
[322149404,1712851844412,-1379.49,0.00032876,2]
[322149405,1712851844422,-1661.92,0.00032876,2]
[322149406,1712851844435,-500.0,0.00032876,2]
[322149407,1712851844446,-500.0,0.00032876,2]
[322149408,1712851844456,-500.0,0.00032876,2]
[322149409,1712851844466,-620.12,0.00032876,2]
[322149410,1712851844476,-500.0,0.00032876,2]
[322149411,1712851844486,-500.0,0.00032876,2]
[322149412,1712851844496,-500.0,0.00032876,2]
[322149413,1712851844507,-2273.9,0.00032876,2]
[322149414,1712851844516,-803.87,0.00032876,2]
[322149415,1712851844527,-500.0,0.00032876,2]
[322149416,1712851844537,-500.0,0.00032876,2]
[322149417,1712851844546,-327.33268508,0.00032876,2]
[322149418,1712851844556,-2334.12,0.00032876,2]
[322149419,1712851844568,-500.0,0.00032876,2]
[322149420,1712851844578,-500.0,0.00032876,2]
[322149421,1712851844588,-500.0,0.00032876,2]
[322149422,1712851844598,-155.18069101,0.00032876,2]
[322149423,1712851844608,-500.0,0.00032876,2]
[322149424,1712851844619,-2228.59,0.00032876,2]
[322149425,1712851844633,-793.1,0.00032876,2]
[322149426,1712851844645,-500.0,0.00032876,2]
[322149427,1712851844655,-840.39,0.00032876,2]
[322149428,1712851844665,-554.24,0.00032876,2]
[322149429,1712851844676,-573.59,0.00032876,2]
[322149430,1712851844686,-500.0,0.00032876,2]
[322149431,1712851844696,-500.0,0.00032876,2]
[322149432,1712851844706,-500.0,0.00032876,2]
[322149433,1712851844715,-325.58727512,0.00032876,2]
[322149434,1712851844727,-1137.26,0.00032876,2]
[322149435,1712851844738,-2239.11,0.00032876,2]
[322149436,1712851844747,-500.0,0.00032876,2]
[322149437,1712851844757,-500.0,0.00032876,2]
[322149438,1712851844766,-500.0,0.00032876,2]
[322149439,1712851844776,-2017.61,0.00032876,2]
[322149440,1712851844786,-500.0,0.00032876,2]
[322149441,1712851844796,-793.09,0.00032876,2]
[322149442,1712851844806,-1243.59,0.00032876,2]
[322149443,1712851844816,-1042.88,0.00032876,2]
[322149444,1712851844826,-500.0,0.00032876,2]
[322149445,1712851844837,-500.0,0.00032876,2]
[322149446,1712851844847,-1883.62,0.00032876,2]
[322149447,1712851844857,-500.0,0.00032876,2]
[322149448,1712851844867,-733.53,0.00032876,2]
[322149449,1712851844878,-500.0,0.00032876,2]
[322149450,1712851844886,-528.39,0.00032876,2]
[322149451,1712851844896,-729.73,0.00032876,2]
[322149452,1712851844906,-500.0,0.00032876,2]
[322149453,1712851844915,-633.2,0.00032876,2]
[322149454,1712851844925,-545.9,0.00032876,2]
[322149455,1712851844935,-500.0,0.00032876,2]
[322149456,1712851844944,-500.0,0.00032876,2]
[322149457,1712851844954,-500.0,0.00032876,2]
[322149458,1712851844968,-500.0,0.00032876,2]
[322149459,1712851844978,-1136.53,0.00032876,2]
[322149460,1712851844988,-705.27,0.00032876,2]
[322149461,1712851844998,-500.0,0.00032876,2]
[322149462,1712851845008,-500.0,0.00032876,2]
[322149463,1712851845017,-500.0,0.00032876,2]
[322149464,1712851845027,-500.0,0.00032876,2]
[322149465,1712851845037,-586.42,0.00032876,2]
[322149466,1712851845046,-589.27,0.00032876,2]
[322149467,1712851845056,-1297.43,0.00032876,2]
[322149468,1712851845066,-2263.52,0.00032876,2]
[322149469,1712851845076,-1192.9,0.00032876,2]
[322149470,1712851845086,-500.0,0.00032876,2]
[322149471,1712851845100,-500.0,0.00032876,2]
[322149472,1712851845110,-500.0,0.00032876,2]
[322149473,1712851845119,-500.0,0.00032876,2]
[322149474,1712851845130,-500.0,0.00032876,2]
[322149475,1712851845141,-2795.72,0.00032876,2]
[322149476,1712851845150,-851.24,0.00032876,2]
[322149477,1712851845160,-500.0,0.00032876,2]
[322149478,1712851845173,-1573.16,0.00032876,2]
[322149479,1712851845183,-1137.86,0.00032876,2]
[322149480,1712851845192,-1344.27,0.00032876,2]
[322149481,1712851845202,-500.0,0.00032876,2]
[322149482,1712851845212,-500.0,0.00032876,2]
[322149483,1712851845222,-500.0,0.00032876,2]
[322149484,1712851845231,-1587.45,0.00032876,2]
[322149485,1712851845241,-500.0,0.00032876,2]
[322149486,1712851845251,-500.0,0.00032876,2]
[322149487,1712851845261,-590.2,0.00032876,2]
[322149488,1712851845270,-1467.86,0.00032876,2]
[322149489,1712851845280,-500.0,0.00032876,2]
[322149490,1712851845290,-500.0,0.00032876,2]
[322149491,1712851845300,-791.04,0.00032876,2]
[322149492,1712851845309,-500.0,0.00032876,2]
[322149493,1712851845319,-500.0,0.00032876,2]
[322149494,1712851845328,-500.0,0.00032876,2]
[322149495,1712851845339,-500.0,0.00032876,2]
[322149496,1712851845349,-1446.28,0.00032876,2]
[322149497,1712851845359,-500.0,0.00032876,2]
[322149498,1712851845368,-1046.25,0.00032876,2]
[322149499,1712851845378,-500.0,0.00032876,2]
[322149500,1712851845387,-500.0,0.00032876,2]
[322149501,1712851845397,-500.0,0.00032876,2]
[322149502,1712851845406,-500.0,0.00032876,2]
[322149503,1712851845415,-500.0,0.00032876,2]
[322149504,1712851845426,-1352.87,0.00032876,2]
[322149505,1712851845437,-500.0,0.00032876,2]
[322149506,1712851845448,-500.0,0.00032876,2]
[322149507,1712851845458,-753.64,0.00032876,2]
[322149508,1712851845467,-500.0,0.00032876,2]
[322149509,1712851845478,-500.0,0.00032876,2]
[322149510,1712851845487,-673.31,0.00032876,2]
[322149511,1712851845499,-500.0,0.00032876,2]
[322149512,1712851845508,-500.0,0.00032876,2]
[322149513,1712851845519,-500.0,0.00032876,2]
[322149514,1712851845529,-500.0,0.00032876,2]
[322149515,1712851845538,-500.0,0.00032876,2]
[322149516,1712851845547,-500.0,0.00032876,2]
[322149517,1712851845556,-500.0,0.00032876,2]
[322149518,1712851845566,-500.0,0.00032876,2]
[322149519,1712851845575,-495.78948242,0.00032876,2]
[322149520,1712851845584,-500.0,0.00032876,2]
[322149521,1712851845594,-571.75,0.00032876,2]
[322149522,1712851845603,-1479.17,0.00032876,2]
[322149523,1712851845613,-500.0,0.00032876,2]
[322149524,1712851845622,-565.5,0.00032876,2]
[322149525,1712851845632,-957.03,0.00032876,2]
[322149526,1712851845642,-471.22762964,0.00032876,2]
[322149527,1712851845651,-500.0,0.00032876,2]
[322149528,1712851845661,-1606.34,0.00032876,2]
[322149529,1712851845672,-500.0,0.00032876,2]
[322149530,1712851845687,-500.0,0.00032876,2]
[322149531,1712851845697,-871.54,0.00032876,2]
[322149532,1712851845707,-539.53,0.00032876,2]
[322149533,1712851845716,-500.0,0.00032876,2]
[322149534,1712851845726,-1381.3,0.00032876,2]
[322149535,1712851845735,-554.96,0.00032876,2]
[322149536,1712851845745,-664.66,0.00032876,2]
[322149537,1712851845754,-500.0,0.00032876,2]
[322149538,1712851845765,-500.0,0.00032876,2]
[322149539,1712851845776,-553.1490243,0.00032876,2]
[322149542,1712851845786,-500.0,0.00032876,2]
[322149544,1712851845796,-587.46,0.00032876,2]
[322149546,1712851845809,-500.0,0.00032876,2]
[322149548,1712851845819,-2213.84,0.00032876,2]
[322149550,1712851845829,-500.0,0.00032876,2]
[322149553,1712851845839,-1745.15,0.00032876,2]
[322149556,1712851845849,-785.18,0.00032876,2]
[322149558,1712851845859,-500.0,0.00032876,2]
[322149560,1712851845869,-212.92910879,0.00032876,2]
[322149561,1712851845881,-500.0,0.00032876,2]
[322149563,1712851845892,-500.0,0.00032876,2]
[322149565,1712851845902,-267.00195889,0.00032876,2]
[322149567,1712851845912,-1165.17,0.00032876,2]
[322149568,1712851845921,-500.0,0.00032876,2]
[322149569,1712851845933,-500.0,0.00032876,2]
[322149570,1712851845942,-556.31,0.00032876,2]
[322149571,1712851845952,-500.0,0.00032876,2]
[322149572,1712851845962,-1412.07,0.00032876,2]
[322149573,1712851845972,-500.0,0.00032876,2]
[322149574,1712851845982,-500.0,0.00032876,2]
[322149575,1712851845992,-500.0,0.00032876,2]
[322149576,1712851846003,-500.0,0.00032876,2]
[322149577,1712851846012,-703.09,0.00032876,2]
[322149578,1712851846022,-500.0,0.00032876,2]
[322149579,1712851846032,-1008.63,0.00032876,2]
[322149580,1712851846041,-500.0,0.00032876,2]
[322149581,1712851846051,-500.0,0.00032876,2]
[322149582,1712851846060,-500.0,0.00032876,2]
[322149583,1712851846070,-556.64,0.00032876,2]
[322149584,1712851846080,-500.0,0.00032876,2]
[322149585,1712851846090,-2713.18,0.00032876,2]
[322149586,1712851846102,-1102.71,0.00032876,2]
[322149587,1712851846111,-931.77,0.00032876,2]
[322149588,1712851846120,-500.0,0.00032876,2]
[322149589,1712851846135,-500.0,0.00032876,2]
[322149590,1712851846145,-500.0,0.00032876,2]
[322149591,1712851846154,-500.0,0.00032876,2]
[322149592,1712851846165,-1218.09,0.00032876,2]
[322149593,1712851846175,-998.84,0.00032876,2]
[322149594,1712851846186,-500.0,0.00032876,2]
[322149595,1712851846195,-500.0,0.00032876,2]
[322149596,1712851846204,-500.0,0.00032876,2]
[322149597,1712851846214,-500.0,0.00032876,2]
[322149598,1712851846224,-500.0,0.00032876,2]
[322149599,1712851846233,-500.0,0.00032876,2]
[322149600,1712851846242,-500.0,0.00032876,2]
[322149601,1712851846252,-500.0,0.00032876,2]
[322149602,1712851846263,-500.0,0.00032876,2]
[322149603,1712851846272,-646.68,0.00032876,2]
[322149604,1712851846281,-500.0,0.00032876,2]
[322149605,1712851846290,-500.0,0.00032876,2]
[322149606,1712851846300,-709.17,0.00032876,2]
[322149607,1712851846309,-971.57,0.00032876,2]
[322149608,1712851846319,-500.0,0.00032876,2]
[322149609,1712851846328,-500.0,0.00032876,2]
[322149610,1712851846338,-500.0,0.00032876,2]
[322149611,1712851846347,-500.0,0.00032876,2]
[322149612,1712851846356,-623.45,0.00032876,2]
[322149613,1712851846365,-500.0,0.00032876,2]
[322149614,1712851846375,-1928.02,0.00032876,2]
[322149615,1712851846387,-515.16,0.00032876,2]
[322149616,1712851846396,-769.8,0.00032876,2]
[322149617,1712851846405,-1277.96,0.00032876,2]
[322149618,1712851846415,-1171.63,0.00032876,2]
[322149619,1712851846425,-500.0,0.00032876,2]
[322149620,1712851846434,-500.0,0.00032876,2]
[322149621,1712851846444,-500.0,0.00032876,2]
[322149622,1712851846454,-1820.56,0.00032876,2]
[322149623,1712851846463,-656.83,0.00032876,2]
[322149624,1712851846473,-500.0,0.00032876,2]
[322149625,1712851846482,-1354.49,0.00032876,2]
[322149626,1712851846491,-500.0,0.00032876,2]
[322149627,1712851846501,-500.0,0.00032876,2]
[322149628,1712851846510,-2151.55,0.00032876,2]
[322149629,1712851846519,-500.0,0.00032876,2]
[322149630,1712851846528,-500.0,0.00032876,2]
[322149632,1712851846619,-500.0,0.00032876,2]
[322149633,1712851846629,-588.59,0.00032876,2]
[322149634,1712851846638,-614.70083576,0.00032876,2]
[322149635,1712851846647,-1754.71,0.00032876,2]
[322149636,1712851846656,-1543.76,0.00032876,2]
[322149637,1712851846665,-500.0,0.00032876,2]
[322149638,1712851846674,-500.0,0.00032876,2]
[322149639,1712851846683,-1443.47,0.00032876,2]
[322149640,1712851846692,-500.0,0.00032876,2]
[322149641,1712851846701,-500.0,0.00032876,2]
[322149642,1712851846710,-1152.92,0.00032876,2]
[322149643,1712851846720,-500.0,0.00032876,2]
[322149644,1712851846729,-699.68,0.00032876,2]
[322149645,1712851846739,-557.04,0.00032876,2]
[322149646,1712851846748,-500.0,0.00032876,2]
[322149647,1712851846758,-903.99,0.00032876,2]
[322149648,1712851846767,-500.0,0.00032876,2]
[322149649,1712851846776,-852.33,0.00032876,2]
[322149650,1712851846786,-5704.56,0.00032876,2]
[322149651,1712851846795,-500.0,0.00032876,2]
[322149652,1712851846804,-682.71,0.00032876,2]
[322149653,1712851846813,-908.53,0.00032876,2]
[322149654,1712851846823,-500.0,0.00032876,2]
[322149655,1712851846832,-3972.63,0.00032876,2]
[322149656,1712851846842,-1471.58,0.00032876,2]
[322149657,1712851846852,-704.98,0.00032876,2]
[322149658,1712851846861,-1706.91,0.00032876,2]
[322149659,1712851846871,-500.0,0.00032876,2]
[322149660,1712851846882,-500.0,0.00032876,2]
[322149661,1712851846891,-500.0,0.00032876,2]
[322149662,1712851846901,-747.68,0.00032876,2]
[322149663,1712851846910,-535.59,0.00032876,2]
[322149664,1712851846919,-2965.37,0.00032876,2]
[322149665,1712851846929,-1052.76,0.00032876,2]
[322149666,1712851846938,-579.57,0.00032876,2]
[322149667,1712851846947,-500.0,0.00032876,2]
[322149668,1712851846956,-1260.25,0.00032876,2]
[322149669,1712851846965,-2716.58,0.00032876,2]
[322149670,1712851846975,-500.0,0.00032876,2]
[322149671,1712851846984,-500.0,0.00032876,2]
[322149672,1712851846994,-500.0,0.00032876,2]
[322149673,1712851847003,-556.45,0.00032876,2]
[322149674,1712851847013,-1571.14,0.00032876,2]
[322149675,1712851847022,-500.0,0.00032876,2]
[322149676,1712851847031,-500.0,0.00032876,2]
[322149677,1712851847040,-500.0,0.00032876,2]
[322149678,1712851847049,-500.0,0.00032876,2]
[322149679,1712851847059,-500.0,0.00032876,2]
[322149680,1712851847068,-500.0,0.00032876,2]
[322149681,1712851847077,-1207.86,0.00032876,2]
[322149682,1712851847086,-500.0,0.00032876,2]
[322149683,1712851847098,-500.0,0.00032876,2]
[322149684,1712851847108,-532.79855509,0.00032876,2]
[322149685,1712851847117,-676.86,0.00032876,2]
[322149686,1712851847127,-500.0,0.00032876,2]
[322149687,1712851847140,-500.0,0.00032876,2]
[322149688,1712851847149,-864.33,0.00032876,2]
[322149689,1712851847158,-657.99,0.00032876,2]
[322149690,1712851847167,-500.0,0.00032876,2]
[322149691,1712851847178,-1883.4,0.00032876,2]
[322149692,1712851847187,-3475.03,0.00032876,2]
[322149693,1712851847197,-500.0,0.00032876,2]
[322149694,1712851847206,-500.0,0.00032876,2]
[322149695,1712851847215,-500.0,0.00032876,2]
[322149696,1712851847224,-500.0,0.00032876,2]
[322149697,1712851847233,-500.0,0.00032876,2]
[322149698,1712851847242,-500.0,0.00032876,2]
[322149699,1712851847251,-1013.28,0.00032876,2]
[322149700,1712851847261,-540.92845011,0.00032876,2]
[322149701,1712851847270,-536.8,0.00032876,2]
[322149702,1712851847279,-877.64,0.00032876,2]
[322149703,1712851847289,-1125.95,0.00032876,2]
[322149704,1712851847298,-500.0,0.00032876,2]
[322149705,1712851847307,-1603.3,0.00032876,2]
[322149706,1712851847316,-500.0,0.00032876,2]
[322149707,1712851847326,-500.0,0.00032876,2]
[322149708,1712851847335,-1760.62,0.00032876,2]
[322149709,1712851847345,-500.0,0.00032876,2]
[322149710,1712851847354,-1006.33,0.00032876,2]
[322149711,1712851847363,-689.43,0.00032876,2]
[322149712,1712851847372,-500.0,0.00032876,2]
[322149713,1712851847383,-3676.33,0.00032876,2]
[322149714,1712851847392,-2203.25,0.00032876,2]
[322149715,1712851847401,-500.0,0.00032876,2]
[322149716,1712851847410,-500.0,0.00032876,2]
[322149717,1712851847419,-832.38,0.00032876,2]
[322149718,1712851847428,-7503.54,0.00032876,2]
[322149719,1712851847438,-500.0,0.00032876,2]
[322149720,1712851847447,-500.0,0.00032876,2]
[322149721,1712851847456,-500.0,0.00032876,2]
[322149722,1712851847466,-560.86,0.00032876,2]
[322149723,1712851847475,-500.0,0.00032876,2]
[322149724,1712851847483,-500.0,0.00032876,2]
[322149725,1712851847492,-516.79,0.00032876,2]
[322149726,1712851847501,-500.0,0.00032876,2]
[322149727,1712851847511,-676.05,0.00032876,2]
[322149728,1712851847521,-507.26437668,0.00032876,2]
[322149729,1712851847530,-4043.87,0.00032876,2]
[322149730,1712851847539,-211.9,0.00032876,2]
[322149731,1712851847550,-2627.69,0.00032876,2]
[322149732,1712851847560,-500.0,0.00032876,2]
[322149733,1712851847569,-500.0,0.00032876,2]
[322149734,1712851847578,-1750.31,0.00032876,2]
[322149735,1712851847588,-500.0,0.00032876,2]
[322149736,1712851847597,-500.0,0.00032876,2]
[322149737,1712851847607,-1566.83,0.00032876,2]
[322149738,1712851847616,-500.0,0.00032876,2]
[322149739,1712851847625,-697.34,0.00032876,2]
[322149740,1712851847639,-500.0,0.00032876,2]
[322149741,1712851847648,-3629.22,0.00032876,2]
[322149742,1712851847658,-695.97261,0.00032876,2]
[322149743,1712851847667,-517.05746553,0.00032876,2]
[322149744,1712851847676,-500.0,0.00032876,2]
[322149745,1712851847685,-500.0,0.00032876,2]
[322149746,1712851847695,-500.0,0.00032876,2]
[322149747,1712851847704,-500.0,0.00032876,2]
[322149748,1712851847713,-500.0,0.00032876,2]
[322149749,1712851847723,-500.0,0.00032876,2]
[322149750,1712851847732,-818.35,0.00032876,2]
[322149751,1712851847742,-1667.16,0.00032876,2]
[322149752,1712851847751,-5000.0,0.00032876,2]
[322149753,1712851847761,-603.28,0.00032876,2]
[322149754,1712851847771,-500.0,0.00032876,2]
[322149755,1712851847781,-500.0,0.00032876,2]
[322149756,1712851847793,-500.0,0.00032876,2]
[322149757,1712851847802,-500.0,0.00032876,2]
[322149758,1712851847811,-500.0,0.00032876,2]
[322149759,1712851847821,-734.37,0.00032876,2]
[322149760,1712851847830,-4801.8,0.00032876,2]
[322149761,1712851847841,-150.40797084,0.00032876,2]